[Event "HUN-ch U8-U18 2019"]
[Site "Balatonlelle"]
[Date "2019.06.21"]
[Round "1.15"]
[White "Miszler, Levente"]
[Black "Kokeny, Norbert Adrian"]
[Result "1/2-1/2"]
[ECO "A04"]
[WhiteElo "2041"]
[BlackElo "2268"]
[Annotator "NA"]
[PlyCount "102"]
[EventDate "2019.06.21"]
[EventType "swiss"]
[EventCountry "HUN"]
[SourceTitle "playchess.com"]
[Source "ChessBase"]
[SourceQuality "1"]
[TimeControl "40/5400+30:1800+30"]

1. Nf3 {[%emt 0:00:05]} c5 {[%emt 0:00:05]} 2. c4 {[%emt 0:00:07]} Nc6 {[%emt 0:00:03]} 3. g3 {[%emt 0:00:07]} g6 {[%emt 0:00:04]} 4. Bg2 {[%emt 0:00:05]} Bg7 {[%emt 0:00:06]} 5. O-O {[%emt 0:00:11]} e6 {[%emt 0:00:05]} 6. Nc3 {[%emt 0:00:27]} Nge7 {[%emt 0:00:07]} 7. d3 {[%emt 0:01:30]} b6 {[%emt 0:04:14]} 8. Bf4 {[%emt 0:03:54]} d6 {[%emt 0:01:10]} 9. Qc1 {[%emt 0:18:35]} O-O {[%emt 0:08:16]} 10. Bh6 {[%emt 0:03:15]} Bb7 {[%emt 0:00:56]} 11. Bxg7 {[%emt 0:02:22]} Kxg7 {[%emt 0:00:04]} 12. e4 {[%emt 0:03:31]} Ne5 {[%emt 0:03:13]} 13. Qe3 {[%emt 0:03:46]} N7c6 {[%emt 0:00:41]} 14. Ne1 {[%emt 0:08:22]} Nd4 {[%emt 0:12:12]} 15. f4 {[%emt 0:06:17]} Ng4 {[%emt 0:02:55]} 16. Qd2 {[%emt 0:00:21]} Qd7 {[%emt 0:03:38]} 17. h3 {[%emt 0:04:10]} Nf6 {[%emt 0:00:55]} 18. Nc2 {[%emt 0:00:56]} e5 {[%emt 0:14:20]} 19. f5 {[%emt 0:05:28]} h6 {[%emt 0:08:59]} 20. Ne3 {[%emt 0:03:41]} g5 {[%emt 0:03:20]} 21. Qd1 {[%emt 0:05:36]} Rg8 {[%emt 0:01:50]} 22. Ng4 {[%emt 0:08:37]} Nxg4 {[%emt 0:00:26]} 23. Qxg4 {[%emt 0:00:18]} f6 {[%emt 0:00:04]} 24. Qh5 {[%emt 0:00:30]} Qf7 {[%emt 0:01:46]} 25. Qxf7+ {[%emt 0:00:43]} Kxf7 {[%emt 0:00:05]} 26. Rf2 {[%emt 0:02:01]} a6 {[%emt 0:01:40]} 27. Rc1 {[%emt 0:02:50]} b5 {[%emt 0:03:43]} 28. b3 {[%emt 0:00:57]} Rgb8 {[%emt 0:01:04]} 29. Rb2 {[%emt 0:02:34]} Bc6 {[%emt 0:04:24]} 30. Ne2 {[%emt 0:04:36]} bxc4 {[%emt 0:00:04]} 31. Nxd4 {[%emt 0:00:46]} exd4 {[%emt 0:00:08]} 32. dxc4 {[%emt 0:00:16]} Rb6 {[%emt 0:00:09]} 33. Kf2 {[%emt 0:01:49]} a5 {[%emt 0:00:05]} 34. Ke2 {[%emt 0:00:30]} a4 {[%emt 0:01:36]} 35. Kd3 {[%emt 0:00:56]} axb3 {[%emt 0:00:06]} 36. axb3 {[%emt 0:00:15]} Rab8 {[%emt 0:00:11]} 37. Rcb1 {[%emt 0:00:31]} Bd7 {[%emt 0:00:46]} 38. Bf3 {[%emt 0:01:45]} d5 {[%emt 0:00:19]} 39. cxd5 {[%emt 0:04:05]} Ke7 {[%emt 0:00:08]} 40. Kd2 {[%emt 0:00:00]} c4 {[%emt 0:00:00]} 41. Kc2 {[%emt 0:02:48]} Rxb3 {[%emt 0:02:45]} 42. Rxb3 {[%emt 0:00:39]} Rxb3 {[%emt 0:00:17]} 43. Rxb3 {[%emt 0:02:26]} Ba4 {[%emt 0:00:05]} 44. Kb2 {[%emt 0:10:37]} Bxb3 {[%emt 0:00:12]} 45. Be2 {[%emt 0:00:15]} Kd6 {[%emt 0:00:12]} 46. Bd3 {[%emt 0:00:17]} Kc5 {[%emt 0:05:01]} 47. Bc2 {[%emt 0:00:38]} Bxc2 {[%emt 0:00:06]} 48. Kxc2 {[%emt 0:00:04]} c3 {[%emt 0:00:04]} 49. Kd3 {[%emt 0:04:13]} h5 {[%emt 0:00:05]} 50. g4 {[%emt 0:04:16]} h4 {[%emt 0:00:01]} 51. Kc2 {[%emt 0:03:27]} Kd6 {[%emt 0:06:02]} 1/2-1/2

[Event "HUN-ch U8-U18 2019"]
[Site "Balatonlelle"]
[Date "2019.06.21"]
[Round "1.15"]
[White "Magyar, Erik Ferenc"]
[Black "Bilku, Andras"]
[Result "1/2-1/2"]
[ECO "B13"]
[WhiteElo "1561"]
[BlackElo "1907"]
[Annotator "NA"]
[PlyCount "85"]
[EventDate "2019.06.21"]
[EventType "swiss"]
[EventCountry "HUN"]
[SourceTitle "playchess.com"]
[Source "ChessBase"]
[SourceQuality "1"]
[TimeControl "40/5400+30:1800+30"]

1. e4 {[%emt 0:00:01]} c6 {[%emt 0:00:10]} 2. d4 {[%emt 0:00:08]} d5 {[%emt 0:00:06]} 3. exd5 {[%emt 0:00:10]} cxd5 {[%emt 0:00:07]} 4. Bd3 {[%emt 0:00:07]} Nc6 {[%emt 0:00:06]} 5. c3 {[%emt 0:00:09]} Qc7 {[%emt 0:00:50]} 6. Ne2 {[%emt 0:01:08]} Nf6 {[%emt 0:03:02]} 7. Bf4 {[%emt 0:01:07]} Qb6 {[%emt 0:00:16]} 8. Qb3 {[%emt 0:03:39]} Qxb3 {[%emt 0:16:27]} 9. axb3 {[%emt 0:00:09]} g6 {[%emt 0:00:08]} 10. Nd2 {[%emt 0:01:10]} Bf5 {[%emt 0:00:15]} 11. Bxf5 {[%emt 0:01:22]} gxf5 {[%emt 0:00:06]} 12. Nf3 {[%emt 0:06:01]} e6 {[%emt 0:00:26]} 13. Ne5 {[%emt 0:02:34]} Nxe5 {[%emt 0:02:36]} 14. Bxe5 {[%emt 0:00:24]} Be7 {[%emt 0:00:46]} 15. Bxf6 {[%emt 0:01:02]} Bxf6 {[%emt 0:00:07]} 16. f4 {[%emt 0:01:38]} Rg8 {[%emt 0:00:25]} 17. Kf2 {[%emt 0:00:29]} Kd7 {[%emt 0:00:48]} 18. Nc1 {[%emt 0:00:36]} b6 {[%emt 0:03:01]} 19. Nd3 {[%emt 0:01:06]} Kc7 {[%emt 0:01:08]} 20. Ne5 {[%emt 0:04:05]} Bxe5 {[%emt 0:00:30]} 21. fxe5 {[%emt 0:02:25]} Rg4 {[%emt 0:02:37]} 22. Rhe1 {[%emt 0:08:27]} Kb7 {[%emt 0:00:41]} 23. Re3 {[%emt 0:01:04]} Rag8 {[%emt 0:00:18]} 24. g3 {[%emt 0:02:14]} h5 {[%emt 0:00:24]} 25. Rf3 {[%emt 0:00:53]} h4 {[%emt 0:00:19]} 26. Rg1 {[%emt 0:01:43]} h3 {[%emt 0:02:23]} 27. Rf4 {[%emt 0:01:52]} a5 {[%emt 0:01:08]} 28. Rxg4 {[%emt 0:03:56]} Rxg4 {[%emt 0:00:32]} 29. Rd1 {[%emt 0:02:09]} Kc6 {[%emt 0:01:40]} 30. Kf3 {[%emt 0:02:35]} Kb5 {[%emt 0:02:04]} 31. Ra1 {[%emt 0:08:21]} Re4 {[%emt 0:01:37]} 32. Kf2 {[%emt 0:03:53]} Kc6 {[%emt 0:01:03]} 33. Rg1 {[%emt 0:02:52]} Kd7 {[%emt 0:03:15]} 34. Re1 {[%emt 0:02:09]} Rg4 {[%emt 0:00:18]} 35. Re3 {[%emt 0:00:15]} Ke7 {[%emt 0:01:29]} 36. Rf3 {[%emt 0:00:16]} f6 {[%emt 0:09:46]} 37. exf6+ {[%emt 0:00:09]} Kxf6 {[%emt 0:00:05]} 38. Rf4 {[%emt 0:02:45]} e5 {[%emt 0:02:48]} 39. dxe5+ {[%emt 0:00:24]} Kxe5 {[%emt 0:00:30]} 40. Ke3 {[%emt 0:00:00]} b5 {[%emt 0:00:00]} 41. Kf3 {[%emt 0:04:24]} b4 {[%emt 0:09:46]} 42. Ke3 {[%emt 0:00:51]} bxc3 {[%emt 0:07:25]} 43. bxc3 1/2-1/2

[Event "HUN-ch U8-U18 2019"]
[Site "Balatonlelle"]
[Date "2019.06.21"]
[Round "1.16"]
[White "Vodila, Martin Botond"]
[Black "Barasits, Balint"]
[Result "1/2-1/2"]
[ECO "C26"]
[WhiteElo "2243"]
[BlackElo "2022"]
[Annotator "NA"]
[PlyCount "67"]
[EventDate "2019.06.21"]
[EventType "swiss"]
[EventCountry "HUN"]
[SourceTitle "playchess.com"]
[Source "ChessBase"]
[SourceQuality "1"]
[TimeControl "40/5400+30:1800+30"]

1. e4 {[%emt 0:00:03]} e5 {[%emt 0:00:09]} 2. Nc3 {[%emt 0:00:16]} Nf6 {[%emt 0:00:10]} 3. Bc4 {[%emt 0:00:07]} Bb4 {[%emt 0:01:07]} 4. Nge2 {[%emt 0:00:16]} O-O {[%emt 0:00:42]} 5. O-O {[%emt 0:01:05]} Nc6 {[%emt 0:02:04]} 6. d3 {[%emt 0:01:38]} h6 {[%emt 0:01:00]} 7. h3 {[%emt 0:03:32]} Na5 {[%emt 0:04:36]} 8. Be3 {[%emt 0:02:27]} d6 {[%emt 0:06:52]} 9. a3 {[%emt 0:00:48]} Nxc4 {[%emt 0:00:22]} 10. dxc4 {[%emt 0:00:22]} Bxc3 {[%emt 0:00:36]} 11. Nxc3 {[%emt 0:00:12]} Be6 {[%emt 0:03:14]} 12. Qd3 {[%emt 0:00:09]} Qd7 {[%emt 0:01:44]} 13. Rad1 {[%emt 0:03:42]} Qc6 {[%emt 0:03:44]} 14. Nd5 {[%emt 0:05:40]} Bxd5 {[%emt 0:07:30]} 15. cxd5 {[%emt 0:01:46]} Qd7 {[%emt 0:00:51]} 16. c4 {[%emt 0:00:11]} a5 {[%emt 0:00:20]} 17. b3 {[%emt 0:01:20]} Nh7 {[%emt 0:20:34]} 18. g4 {[%emt 0:04:48]} f6 {[%emt 0:03:31]} 19. Kg2 {[%emt 0:00:37]} Ng5 {[%emt 0:13:52]} 20. f3 {[%emt 0:00:27]} h5 {[%emt 0:01:56]} 21. Qd2 {[%emt 0:05:56]} hxg4 {[%emt 0:07:42]} 22. hxg4 {[%emt 0:03:54]} Nxe4 {[%emt 0:00:10]} 23. fxe4 {[%emt 0:01:07]} Qxg4+ {[%emt 0:00:03]} 24. Kf2 {[%emt 0:00:58]} Qxe4 {[%emt 0:00:06]} 25. Rg1 {[%emt 0:00:45]} Kf7 {[%emt 0:01:21]} 26. Qe2 {[%emt 0:02:48]} Qh4+ {[%emt 0:02:45]} 27. Kf1 {[%emt 0:02:39]} Rh8 {[%emt 0:00:31]} 28. a4 {[%emt 0:13:17]} Rh5 {[%emt 0:02:15]} 29. Qg4 {[%emt 0:03:16]} Qxg4 {[%emt 0:02:20]} 30. Rxg4 {[%emt 0:00:11]} Rah8 {[%emt 0:00:47]} 31. Ke2 {[%emt 0:02:49]} Rh2+ {[%emt 0:00:27]} 32. Bf2 {[%emt 0:00:12]} R8h3 {[%emt 0:00:39]} 33. Rdg1 {[%emt 0:00:16]} g5 {[%emt 0:00:18]} 34. R4g3 {[%emt 0:03:27]} 1/2-1/2

[Event "HUN-ch U8-U18 2019"]
[Site "Balatonlelle"]
[Date "2019.06.21"]
[Round "1.16"]
[White "Kovacs, Patrik Zsolt"]
[Black "Petroczy, Zoltan"]
[Result "0-1"]
[ECO "E30"]
[WhiteElo "1903"]
[BlackElo "1517"]
[Annotator "NA"]
[PlyCount "90"]
[EventDate "2019.06.21"]
[EventType "swiss"]
[EventCountry "HUN"]
[SourceTitle "playchess.com"]
[Source "ChessBase"]
[SourceQuality "1"]
[TimeControl "40/5400+30:1800+30"]

1. d4 {[%emt 0:00:02]} Nf6 {[%emt 0:00:05]} 2. c4 {[%emt 0:00:07]} e6 {[%emt 0:00:11]} 3. Nc3 {[%emt 0:00:08]} Bb4 {[%emt 0:00:09]} 4. Bg5 {[%emt 0:00:10]} O-O {[%emt 0:02:09]} 5. Nf3 {[%emt 0:00:14]} c5 {[%emt 0:02:27]} 6. a3 {[%emt 0:03:13]} Bxc3+ {[%emt 0:00:26]} 7. bxc3 {[%emt 0:00:09]} cxd4 {[%emt 0:03:21]} 8. cxd4 {[%emt 0:00:11]} d5 {[%emt 0:01:37]} 9. e3 {[%emt 0:01:44]} Nc6 {[%emt 0:00:54]} 10. Bd3 {[%emt 0:01:38]} dxc4 {[%emt 0:00:50]} 11. Bxf6 {[%emt 0:01:23]} Qa5+ {[%emt 0:03:42]} 12. Qd2 {[%emt 0:24:00]} cxd3 {[%emt 0:00:22]} 13. Bh4 {[%emt 0:00:17]} b6 {[%emt 0:03:18]} 14. O-O {[%emt 0:02:01]} Ba6 {[%emt 0:01:35]} 15. Rfd1 {[%emt 0:01:33]} Qd5 {[%emt 0:01:58]} 16. Ne1 {[%emt 0:03:07]} Na5 {[%emt 0:00:48]} 17. Rab1 {[%emt 0:02:11]} Rac8 {[%emt 0:04:17]} 18. Nxd3 {[%emt 0:02:02]} Nc4 {[%emt 0:00:28]} 19. Qe2 {[%emt 0:42:49]} Qe4 {[%emt 0:01:51]} 20. Be7 {[%emt 0:00:45]} Rfe8 {[%emt 0:00:15]} 21. Bb4 {[%emt 0:00:11]} Nxa3 {[%emt 0:00:54]} 22. f3 {[%emt 0:02:36]} Qg6 {[%emt 0:00:26]} 23. Rb2 {[%emt 0:07:08]} Bxd3 {[%emt 0:01:44]} 24. Rxd3 {[%emt 0:00:20]} Nc4 {[%emt 0:00:30]} 25. Rc2 {[%emt 0:00:49]} a5 {[%emt 0:02:13]} 26. Be1 {[%emt 0:00:18]} b5 {[%emt 0:01:38]} 27. Rb3 {[%emt 0:00:47]} Qg5 {[%emt 0:02:14]} 28. Rbc3 {[%emt 0:02:26]} a4 {[%emt 0:02:08]} 29. Bf2 {[%emt 0:00:42]} Qe7 {[%emt 0:01:03]} 30. e4 {[%emt 0:00:35]} Qb4 {[%emt 0:00:19]} 31. Qd3 {[%emt 0:00:53]} Qb1+ {[%emt 0:00:22]} 32. Rc1 {[%emt 0:00:21]} Qxd3 {[%emt 0:00:17]} 33. Rxd3 {[%emt 0:00:03]} b4 {[%emt 0:00:15]} 34. d5 {[%emt 0:00:17]} Nb2 {[%emt 0:00:53]} 35. Rdd1 {[%emt 0:01:16]} Nxd1 {[%emt 0:00:07]} 36. Rxd1 {[%emt 0:00:08]} exd5 {[%emt 0:00:12]} 37. exd5 {[%emt 0:00:20]} b3 {[%emt 0:00:22]} 38. Bd4 {[%emt 0:00:54]} Red8 {[%emt 0:00:20]} 39. Bb2 {[%emt 0:00:12]} Rc2 {[%emt 0:00:17]} 40. Ba3 {[%emt 0:00:00]} b2 {[%emt 0:00:00]} 41. d6 {[%emt 0:00:25]} Rc1 {[%emt 0:00:21]} 42. Rxc1 {[%emt 0:00:46]} bxc1=Q+ {[%emt 0:00:10]} 43. Bxc1 {[%emt 0:00:03]} Rxd6 {[%emt 0:00:01]} 44. Kf2 {[%emt 0:00:09]} Rd1 {[%emt 0:00:20]} 45. Bb2 {[%emt 0:00:12]} Rd2+ {[%emt 0:00:06]} 0-1

[Event "HUN-ch U8-U18 2019"]
[Site "Balatonlelle"]
[Date "2019.06.21"]
[Round "1.17"]
[White "Kresz, Adam"]
[Black "Udvardi, Zalan"]
[Result "1/2-1/2"]
[ECO "B33"]
[WhiteElo "1949"]
[BlackElo "2211"]
[Annotator "NA"]
[PlyCount "143"]
[EventDate "2019.06.21"]
[EventType "swiss"]
[EventCountry "HUN"]
[SourceTitle "playchess.com"]
[Source "ChessBase"]
[SourceQuality "1"]
[TimeControl "40/5400+30:1800+30"]

1. e4 {[%emt 0:00:05]} c5 {[%emt 0:00:30]} 2. Nf3 {[%emt 0:00:07]} Nc6 {[%emt 0:00:03]} 3. d4 {[%emt 0:00:10]} cxd4 {[%emt 0:00:03]} 4. Nxd4 {[%emt 0:00:07]} Nf6 {[%emt 0:00:03]} 5. Nc3 {[%emt 0:00:10]} e5 {[%emt 0:00:05]} 6. Ndb5 {[%emt 0:00:07]} d6 {[%emt 0:00:02]} 7. Bg5 {[%emt 0:00:11]} a6 {[%emt 0:00:03]} 8. Na3 {[%emt 0:00:07]} b5 {[%emt 0:00:03]} 9. Bxf6 {[%emt 0:00:07]} gxf6 {[%emt 0:00:04]} 10. Nd5 {[%emt 0:00:13]} Bg7 {[%emt 0:00:05]} 11. c3 {[%emt 0:00:45]} Ne7 {[%emt 0:03:32]} 12. Nc2 {[%emt 0:11:41]} Nxd5 {[%emt 0:12:11]} 13. Qxd5 {[%emt 0:01:07]} Ra7 {[%emt 0:10:54]} 14. a4 {[%emt 0:16:32]} Bb7 {[%emt 0:01:16]} 15. Qd3 {[%emt 0:00:58]} bxa4 {[%emt 0:07:22]} 16. Ne3 {[%emt 0:08:47]} Bc6 {[%emt 0:25:40]} 17. Be2 {[%emt 0:14:30]} O-O {[%emt 0:03:17]} 18. O-O {[%emt 0:25:08]} Qa8 {[%emt 0:04:31]} 19. f3 {[%emt 0:08:13]} Rd8 {[%emt 0:02:14]} 20. c4 {[%emt 0:01:08]} Rb7 {[%emt 0:00:02]} 21. Nd1 {[%emt 0:03:28]} Bh6 {[%emt 0:00:41]} 22. Ra3 {[%emt 0:01:07]} Qa7+ {[%emt 0:00:46]} 23. Kh1 {[%emt 0:01:01]} Qc5 {[%emt 0:00:32]} 24. Qc2 {[%emt 0:01:54]} Rdb8 {[%emt 0:00:11]} 25. Rc3 {[%emt 0:02:37]} Bd7 {[%emt 0:05:13]} 26. Bd3 {[%emt 0:00:19]} Rb4 {[%emt 0:01:24]} 27. Qe2 {[%emt 0:00:39]} Qd4 {[%emt 0:03:26]} 28. Bc2 {[%emt 0:00:24]} Be6 {[%emt 0:00:18]} 29. f4 {[%emt 0:00:38]} Bxc4 {[%emt 0:07:12]} 30. Qg4+ {[%emt 0:00:56]} Kf8 {[%emt 0:00:12]} 31. Rff3 {[%emt 0:00:38]} Qd2 {[%emt 0:02:31]} 32. h3 {[%emt 0:00:20]} Bxf4 {[%emt 0:00:41]} 33. g3 {[%emt 0:01:10]} Be6 {[%emt 0:00:46]} 34. Qh5 {[%emt 0:00:31]} Rxe4 {[%emt 0:00:16]} 35. Rf2 {[%emt 0:00:40]} Re1+ {[%emt 0:02:03]} 36. Kh2 {[%emt 0:00:01]} Qd5 {[%emt 0:00:26]} 37. Rcf3 {[%emt 0:00:58]} Bd2 {[%emt 0:04:31]} 38. Qxh7 {[%emt 0:00:18]} Rb4 {[%emt 0:00:52]} 39. Qh8+ {[%emt 0:00:34]} Ke7 {[%emt 0:00:07]} 40. Qxf6+ {[%emt 0:00:00]} Kd7 {[%emt 0:00:00]} 41. Bf5 {[%emt 0:05:59]} Rxd1 42. Qxf7+ {[%emt 0:00:09]} Kc6 {[%emt 0:01:50]} 43. Bxe6 {[%emt 0:05:17]} Qe4 {[%emt 0:07:46]} 44. Qa7 {[%emt 0:07:24]} Kb5 {[%emt 0:01:21]} 45. Bf5 {[%emt 0:07:13]} Qd4 {[%emt 0:00:52]} 46. Bd3+ {[%emt 0:03:00]} Kc6 {[%emt 0:02:59]} 47. Qa8+ {[%emt 0:01:37]} Kc5 {[%emt 0:00:29]} 48. Qc8+ {[%emt 0:00:17]} Kb6 {[%emt 0:02:37]} 49. Qxa6+ {[%emt 0:00:07]} Kc5 {[%emt 0:00:04]} 50. Rf7 {[%emt 0:01:04]} Qd5 {[%emt 0:10:16]} 51. Qa7+ {[%emt 0:01:20]} Rb6 {[%emt 0:00:10]} 52. Rc7+ {[%emt 0:00:48]} Kd4 {[%emt 0:00:04]} 53. Qxb6+ {[%emt 0:00:25]} Kxd3 {[%emt 0:00:05]} 54. Qa6+ {[%emt 0:00:16]} Kd4 {[%emt 0:00:04]} 55. Qxa4+ {[%emt 0:00:10]} Ke3 {[%emt 0:00:14]} 56. Qxd1 {[%emt 0:01:02]} Kxf2 {[%emt 0:00:13]} 57. Qg1+ {[%emt 0:00:11]} Ke2 {[%emt 0:00:54]} 58. Qg2+ {[%emt 0:02:09]} Qxg2+ {[%emt 0:00:06]} 59. Kxg2 {[%emt 0:00:06]} e4 {[%emt 0:03:35]} 60. h4 {[%emt 0:00:28]} Kd3 {[%emt 0:03:16]} 61. Re7 {[%emt 0:00:16]} d5 {[%emt 0:00:24]} 62. g4 {[%emt 0:02:03]} Bc1 {[%emt 0:00:16]} 63. b4 {[%emt 0:00:35]} Ba3 {[%emt 0:00:07]} 64. g5 {[%emt 0:00:31]} Bxb4 {[%emt 0:00:10]} 65. g6 {[%emt 0:00:47]} Bxe7 {[%emt 0:00:16]} 66. g7 {[%emt 0:00:17]} Bxh4 {[%emt 0:00:19]} 67. g8=Q {[%emt 0:00:06]} d4 {[%emt 0:01:08]} 68. Qb3+ {[%emt 0:00:23]} Kd2 {[%emt 0:02:20]} 69. Kf1 {[%emt 0:01:13]} d3 {[%emt 0:01:22]} 70. Qb2+ {[%emt 0:00:23]} Ke3 {[%emt 0:00:38]} 71. Qb6+ {[%emt 0:00:18]} Kd2 {[%emt 0:00:12]} 72. Qb2+ {[%emt 0:01:02]} 1/2-1/2

[Event "HUN-ch U8-U18 2019"]
[Site "Balatonlelle"]
[Date "2019.06.21"]
[Round "1.17"]
[White "Puskas, Mihaly"]
[Black "Tancsa, Tamas"]
[Result "0-1"]
[ECO "C59"]
[WhiteElo "1458"]
[BlackElo "2158"]
[Annotator "RC"]
[PlyCount "28"]
[EventDate "2019.06.21"]
[EventType "swiss"]
[EventCountry "HUN"]
[SourceTitle "playchess.com"]
[Source "ChessBase"]
[SourceQuality "1"]
[TimeControl "40/5400+30:1800+30"]

1. e4 {[%emt 0:00:03]} e5 {[%emt 0:00:06]} 2. Nf3 {[%emt 0:00:13]} Nc6 {[%emt 0:00:05]} 3. Bc4 {[%emt 0:00:19]} Nf6 {[%emt 0:00:12]} 4. Ng5 {[%emt 0:00:20]} d5 {[%emt 0:00:06]} 5. exd5 {[%emt 0:00:11]} Na5 {[%emt 0:00:05]} 6. Bb5+ {[%emt 0:00:27]} c6 {[%emt 0:00:07]} 7. dxc6 {[%emt 0:00:22]} bxc6 {[%emt 0:00:01]} 8. Be2 {[%emt 0:00:32]} h6 {[%emt 0:00:04]} 9. Nf3 {[%emt 0:00:34]} e4 {[%emt 0:00:11]} 10. Ng1 {[%emt 0:00:26]} Bc5 {[%emt 0:00:13]} 11. a3 {[%emt 0:01:07]} Qd4 {[%emt 0:00:19]} 12. d3 {[%emt 0:01:56]} Qxf2+ {[%emt 0:00:23]} 13. Kd2 {[%emt 0:00:22]} e3+ {[%emt 0:00:03]} 14. Kc3 {[%emt 0:00:22]} Nd5# {[%emt 0:00:02] Kd4} 0-1

[Event "HUN-ch U8-U18 2019"]
[Site "Balatonlelle"]
[Date "2019.06.21"]
[Round "1.18"]
[White "Bohus, Adam"]
[Black "Szabo, A. Martin"]
[Result "1-0"]
[ECO "B01"]
[WhiteElo "2196"]
[BlackElo "1946"]
[Annotator "NA"]
[PlyCount "29"]
[EventDate "2019.06.21"]
[EventType "swiss"]
[EventCountry "HUN"]
[SourceTitle "playchess.com"]
[Source "ChessBase"]
[SourceQuality "1"]
[TimeControl "40/5400+30:1800+30"]

1. e4 {[%emt 0:00:05]} d5 {[%emt 0:00:07]} 2. exd5 {[%emt 0:00:13]} Nf6 {[%emt 0:00:06]} 3. d4 {[%emt 0:00:14]} Bg4 {[%emt 0:00:05]} 4. Nf3 {[%emt 0:00:17]} Nxd5 {[%emt 0:00:12]} 5. c4 {[%emt 0:00:12]} Nb6 {[%emt 0:00:04]} 6. c5 {[%emt 0:00:14]} Nd5 {[%emt 0:00:05]} 7. Qb3 {[%emt 0:00:36]} Bxf3 {[%emt 0:06:59]} 8. Qxb7 {[%emt 0:03:11]} Ne3 {[%emt 0:11:42]} 9. gxf3 {[%emt 0:00:21]} Nc2+ {[%emt 0:00:13]} 10. Kd1 {[%emt 0:00:11]} Nxa1 {[%emt 0:02:04]} 11. Bb5+ {[%emt 0:00:13]} Nd7 {[%emt 0:00:24]} 12. Bxd7+ {[%emt 0:00:10]} Qxd7 {[%emt 0:03:47]} 13. Qxa8+ {[%emt 0:00:11]} Qd8 {[%emt 0:00:03]} 14. Qxd8+ {[%emt 0:00:22]} Kxd8 {[%emt 0:00:03]} 15. b4 {[%emt 0:00:11]} 1-0

[Event "HUN-ch U8-U18 2019"]
[Site "Balatonlelle"]
[Date "2019.06.21"]
[Round "1.18"]
[White "Konyves, Almos"]
[Black "Zsaki, Akos"]
[Result "1-0"]
[ECO "A10"]
[WhiteElo "2125"]
[BlackElo "1432"]
[Annotator "NA"]
[PlyCount "67"]
[EventDate "2019.06.21"]
[EventType "swiss"]
[EventCountry "HUN"]
[SourceTitle "playchess.com"]
[Source "ChessBase"]
[SourceQuality "1"]
[TimeControl "40/5400+30:1800+30"]

1. c4 {[%emt 0:00:03]} Nc6 {[%emt 0:00:10]} 2. Nc3 {[%emt 0:00:09]} e5 {[%emt 0:00:29]} 3. g3 {[%emt 0:00:15]} Bc5 {[%emt 0:00:38]} 4. Bg2 {[%emt 0:00:14]} Nf6 {[%emt 0:00:51]} 5. e3 {[%emt 0:00:06]} d6 {[%emt 0:00:25]} 6. Nge2 {[%emt 0:00:16]} O-O {[%emt 0:00:31]} 7. O-O {[%emt 0:00:07]} Re8 {[%emt 0:01:32]} 8. d3 {[%emt 0:00:27]} a5 {[%emt 0:04:08]} 9. a3 {[%emt 0:00:50]} h6 {[%emt 0:01:55]} 10. Rb1 {[%emt 0:00:39]} Bf5 {[%emt 0:01:39]} 11. Kh1 {[%emt 0:06:56]} e4 {[%emt 0:03:25]} 12. d4 {[%emt 0:00:10]} Bb6 {[%emt 0:00:56]} 13. b4 {[%emt 0:02:03]} Bg4 {[%emt 0:06:23]} 14. h3 {[%emt 0:03:08]} Bh5 {[%emt 0:02:24]} 15. Qc2 {[%emt 0:02:10]} Qc8 {[%emt 0:02:34]} 16. Nf4 {[%emt 0:01:02]} Bf3 {[%emt 0:01:45]} 17. Bxf3 {[%emt 0:02:53]} exf3 {[%emt 0:00:12]} 18. Kh2 {[%emt 0:00:38]} g5 {[%emt 0:00:43]} 19. Nfd5 {[%emt 0:00:08]} Nxd5 {[%emt 0:01:24]} 20. Nxd5 {[%emt 0:00:05]} Kg7 {[%emt 0:00:43]} 21. c5 {[%emt 0:03:30]} dxc5 {[%emt 0:01:36]} 22. dxc5 {[%emt 0:00:07]} Ba7 {[%emt 0:01:07]} 23. Bb2+ {[%emt 0:00:28]} Ne5 {[%emt 0:01:53]} 24. Qe4 {[%emt 0:02:41]} f6 {[%emt 0:01:00]} 25. Bxe5 {[%emt 0:00:46]} Rxe5 {[%emt 0:00:36]} 26. Qxf3 {[%emt 0:00:06]} Rf5 {[%emt 0:01:10]} 27. Qg2 {[%emt 0:00:19]} Qd7 {[%emt 0:00:39]} 28. e4 {[%emt 0:00:33]} Re5 {[%emt 0:00:27]} 29. f4 {[%emt 0:02:10]} Re6 {[%emt 0:03:20]} 30. Rbd1 {[%emt 0:02:11]} Qf7 {[%emt 0:04:31]} 31. fxg5 {[%emt 0:00:58]} hxg5 {[%emt 0:01:28]} 32. e5 {[%emt 0:02:11]} Rae8 {[%emt 0:02:47]} 33. Nxf6 {[%emt 0:00:45]} R8e7 {[%emt 0:03:22]} 34. Nd5 1-0